Cogmind - Beta 13 @@@ ROGUE MODE // 2024.04.04 @ 23:08:57 Player: Ciaphas Result: Destroyed by Y-45 Defender with Heavy Assault Rifle Performance ------------- Evolutions (0) 0 Regions Visited (2) 400 Robots Destroyed (20) 100 Value Destroyed (533) 533 Prototype IDs (1) 20 Alien Tech Used (0) 0 Bonus (0) 0 TOTAL SCORE: 1053 Bonus ------- None Cogmind --------- Core Integrity 0/250 Matter 300/300 Energy 160/160 System Corruption 0% Temperature Cool (36) Movement Rolling (145) Ox3 Location -10/Mines Parts ------- > --- POWER (1) -------- Light Nuclear Core > --- PROPULSION (2) --- Compact Wheel > --- UTILITY (2) ------ High-capacity Storage Unit Improved Terrain Scanner > --- WEAPON (2) ------- EM Pulse Gun Light Assault Rifle > --- INVENTORY (20) --- Light Ion Engine Light Nuclear Core Light Nuclear Core Large Matter Pod (150) Sensor Array Light Assault Rifle Light Assault Rifle Datajack Mining Laser Peak State ------------ > --- POWER ------------ Light Nuclear Core > --- PROPULSION ------- Light Treads Light Treads > --- UTILITY ---------- High-capacity Storage Unit Experimental Sensor Array > --- WEAPON ----------- Assault Rifle Light Assault Rifle > --- INVENTORY -------- Light Ion Engine Light Nuclear Core Light Nuclear Core Compact Wheel Large Matter Pod Sensor Array Improved Terrain Scanner EM Pulse Gun Light Assault Rifle Light Assault Rifle Datajack Mining Laser [Rating: 18] Favorites ----------- Power Light Nuclear Core Engine Light Ion Engine Power Core Light Nuclear Core Propulsion Light Treads Treads Light Treads Leg Aluminum Leg Wheel Compact Wheel Utility High-capacity Storage Unit Device Improved Terrain Scanner Storage High-capacity Storage Unit Processor Signal Interpreter Weapon Light Assault Rifle Energy Gun EM Pulse Gun Ballistic Gun Light Assault Rifle Build | -11 -10 -10 ------- Run | Yrd Mat Min Slots Evolved . | . . . Power . | . . . Propulsion . | . . . Utility . | . . . Weapon . | . . . Parts Attached 20 | 3 8 9 Power 5 | . 2 3 Engine . | . . . Core 5 | . 2 3 Reactor . | . . . Propulsion 5 | 2 1 2 Treads 4 | 2 1 1 Leg . | . . . Wheel 1 | . . 1 Hover . | . . . Flight . | . . . Utility 6 | 1 3 2 Device 3 | 1 . 2 Storage 2 | . 2 . Processor 1 | . 1 . Hackware . | . . . Protection . | . . . Artifact . | . . . Weapon 4 | . 2 2 Energy Gun 1 | . . 1 Energy Cannon . | . . . Ballistic Gun 3 | . 2 1 Ballistic Cannon . | . . . Launcher . | . . . Special Weapon . | . . . Impact Weapon . | . . . Slashing Weapon . | . . . Piercing Weapon . | . . . Special Melee Weapon . | . . . Unidentified Prototypes 1 | . . 1 Parts Lost 5 | . . 5 Power 1 | . . 1 Propulsion 2 | . . 2 Utility 1 | . . 1 Weapon 1 | . . 1 Highest Loss Streak 5 | . . 5 To Critical Strikes . | . . . Average Slot Usage (%) 96 | . 100 93 Engine 1 | . 2 . Core 12 | . 11 13 Treads 24 | . 28 21 Wheel 1 | . . 3 Device 10 | . 12 9 Storage 14 | . 14 14 Processor 2 | . 1 3 Energy Gun 1 | . . 2 Ballistic Gun 26 | . 28 24 Naked Turns . | . . . Heaviest Build 49 | 11 49 49 Greatest Support 40 | 40 40 40 Greatest Overweight (x) 3 | . 1 3 Average Overweight (x) . | . . 1 Largest Inventory Capacity 20 | 8 20 20 Average Capacity 17 | 8 15 20 Most Carried 13 | 7 12 13 Average Carried 9 | 6 7 11 Final Capacity 20 | 8 20 20 Final Carried 12 | 7 12 9 Class Distribution -------------------- 77% | Mutant 22% | Scavenger-Mutant Dominant Class ---------------- Mutant | -10/Materials Mutant | -10/Mines Resources | -11 -10 -10 ----------- Run | Yrd Mat Min Matter Collected 832 | 246 392 194 Remotely . | . . . Salvage Created 760 | 121 387 252 Parts 48 | 3 31 14 Haulers Intercepted 1 | . 1 . Recyclers Shooed 1 | . 1 . Parts Field Recycled . | . . . Retrieved Matter . | . . . Parts Self-Destructed . | . . . Prevented . | . . . Kills | -11 -10 -10 ------- Run | Yrd Mat Min Combat Hostiles Destroyed 13 | . 7 6 Guns 13 | . 7 6 Classes Destroyed 8 | 2 6 . Worker 1 | . 1 . Tunneler 1 | 1 . . Hauler 1 | . 1 . Recycler 1 | 1 . . Operator 1 | . 1 . Watcher 2 | . 2 . Swarmer 2 | . 2 . Grunt 11 | . 5 6 Best Kill Streak 3 | 2 3 2 Combat Bots Only 2 | . 2 2 Max Kills in Single Turn 1 | 1 1 1 Gunslinging . | . . . Exploded . | . . . Melee . | . . . Uniques/NPCs Destroyed . | . . . Combat | -11 -10 -10 -------- Run | Yrd Mat Min Hostile Shots Fired 111 | . 34 77 Missed 26 | . 6 20 Damage Taken 1120 | . 340 780 Core 253 | . 56 197 Absorbed by Shields . | . . . Core Remaining (%) 100 | 100 . . Volleys Fired 86 | 8 46 32 Largest 2 | 2 2 2 Hottest 60 | 40 40 60 Shots Fired 172 | 16 92 64 Gun 172 | 16 92 64 Cannon . | . . . Launcher . | . . . Special . | . . . Kinetic 164 | 16 92 56 Thermal . | . . . Explosive . | . . . Electromagnetic 8 | . . 8 Robot Hit Streak 10 | 7 7 10 Robot Miss Streak 3 | 3 2 3 Penetration Max . | . . . Secondary Targets 2 | . . 2 Max Gunslinging Chain 1 | . . 1 Shots Hit Robots 111 | 10 57 44 Core Hits 45 | 4 26 15 Critical Kills 1 | . . 1 Critical Parts Destroyed 2 | . 1 1 Critical Strikes 4 | . 1 3 Destroy 3 | . 1 2 Corrupt 1 | . . 1 Melee Attacks . | . . . Impact . | . . . Slashing . | . . . Piercing . | . . . Sneak Attacks . | . . . Combat Hostiles . | . . . Follow-up Attacks . | . . . Damage Inflicted 1224 | 79 613 532 Guns 1162 | 79 607 476 Cannons . | . . . Explosions . | . . . Melee . | . . . Ramming 62 | . 6 56 Kinetic 1106 | 79 607 420 Thermal . | . . . Explosive . | . . . Electromagnetic 56 | . . 56 Impact . | . . . Slashing . | . . . Piercing . | . . . Highest Corruption . | . . . Average Corruption . | . . . Corruption Purged . | . . . Corruption Blocked . | . . . Overload Shots . | . . . Overflow Damage . | . . . Projectiles . | . . . Explosions . | . . . Melee . | . . . Knockbacks . | . . . Impact . | . . . Kinetic . | . . . Secondary . | . . . Self-Inflicted Damage 14 | . . 14 Shots . | . . . Rammed 6 | . 1 5 Targets Rammed 6 | . 1 5 Kicked . | . . . Crushed . | . . . Highest Temperature 123 | . 20 123 Average Temperature 18 | . 5 32 Received Heat Transfer 561 | . 168 393 Siege Activations . | . . . Robots Corrupted . | . . . Combat Hostiles . | . . . Parts Fried . | . . . Impact Corruptions . | . . . Robots Melted . | . . . Combat Hostiles . | . . . Parts Melted . | . . . Heat Transferred . | . . . Parts Sabotaged . | . . . Parts Stolen . | . . . Parts Stripped . | . . . Power Chain Reactions . | . . . Alert | -11 -10 -10 ------- Run | Yrd Mat Min Peak Influence 186 | 10 186 110 Initial 6 | . 6 . Average 53 | 7 62 49 Maximum Alert Level . | . . . Low Security (%) 100 | 100 100 100 Level 1 . | . . . Level 2 . | . . . Level 3 . | . . . Level 4 . | . . . Level 5 . | . . . High Security . | . . . Max Security . | . . . Squads Dispatched 1 | . 1 . Investigation . | . . . Extermination . | . . . Reinforcement 1 | . 1 . Assault . | . . . Garrison . | . . . Intercept . | . . . Searches Triggered . | . . . Construction Impeded . | . . . Haulers Reinforced . | . . . Active Scanning Responses . | . . . Cargo Convoy Interrupts . | . . . Stealth | -11 -10 -10 --------- Run | Yrd Mat Min Distress Signals 1 | . . 1 Communications Jammed . | . . . Distress Signals . | . . . Times Spotted 29 | . 19 10 Peak Tracking Total 3 | . 3 2 Tactical Retreats 2 | . 1 1 Traps | -11 -10 -10 ------- Run | Yrd Mat Min Traps Triggered . | . . . Indirectly . | . . . Trap Hack Attempts . | . . . Triggered . | . . . Disarmed . | . . . Reprogrammed . | . . . Reused . | . . . Traps Extracted . | . . . Installed . | . . . Triggered . | . . . Machines | -11 -10 -10 ---------- Run | Yrd Mat Min Machines Disabled 1 | . . 1 Max in Single Turn 1 | . . 1 Machines Repaired . | . . . Machines Dismantled . | . . . Machines Sabotaged . | . . . Overloaded Fab Kills . | . . . Hacking | -11 -10 -10 --------- Run | Yrd Mat Min Machines Accessed 4 | . 3 1 Terminals 3 | . 3 . Fabricators . | . . . Repair Stations . | . . . Recycling Units . | . . . Scanalyzers . | . . . Garrison Access . | . . . Total Hacks 18 | . 17 1 Successful 10 | . 9 1 Failed 8 | . 8 . Catastrophic . | . . . Database Lockouts . | . . . Manual 13 | . 13 . Terminals 17 | . 17 . Fabricators . | . . . Repair Stations . | . . . Recycling Units . | . . . Scanalyzers . | . . . Garrison Access . | . . . Terminal Hacks 7 | . 6 1 Robot Analysis 3 | . 3 . Open Door 1 | . . 1 Locate Traps 2 | . 2 . Zone Layout 1 | . 1 . Fabricator Hacks . | . . . Repair Station Hacks . | . . . Recycling Unit Hacks . | . . . Scanalyzer . | . . . Garrison Access Hacks . | . . . Unauthorized Hacks 3 | . 3 . Terminals 3 | . 3 . Track 1 | . 1 . Botnet 2 | . 2 . Fabricators . | . . . Repair Stations . | . . . Recycling Units . | . . . Scanalyzers . | . . . Garrison Access . | . . . Data Cores Recovered . | . . . Used . | . . . Hacking Detections 3 | . 3 . Full Trace Events . | . . . Feedback Events . | . . . Feedback Blocked . | . . . Robot Schematics Acquired . | . . . Robots Built . | . . . Authchips . | . . . Time . | . . . Total Robot Build Rating . | . . . Part Schematics Acquired . | . . . Parts Built . | . . . Authchips . | . . . Time . | . . . Total Part Build Rating . | . . . Parts Repaired . | . . . Time . | . . . Parts Recycled . | . . . Recycled Matter . | . . . Retrieved Matter . | . . . Retrieved Components . | . . . Parts Scanalyzed . | . . . Part Schematics Acquired . | . . . Parts Damaged . | . . . Bothacking | -11 -10 -10 ------------ Run | Yrd Mat Min Used RIF Installer . | . . . Robots Hacked . | . . . Non-combat . | . . . Combat . | . . . Robot Hacks Applied . | . . . Relay Couplers Released . | . . . Fabnet Peak Effective % . | . . . Robots Rewired . | . . . Allies Hacked . | . . . Hacks Repelled . | . . . Allies | -11 -10 -10 -------- Run | Yrd Mat Min Total Allies . | . . . Largest Group . | . . . Highest-Rated Group . | . . . Highest-Rated Ally . | . . . Total Orders . | . . . Ally Attacks . | . . . Total Damage . | . . . Kills . | . . . Allies Corrupted . | . . . Allies Melted . | . . . Intel | -11 -10 -10 ------- Run | Yrd Mat Min Robot Analysis Total 3 | . 3 . Derelict Logs Recovered 1 | . . 1 Drone Launches . | . . . Drone Recoveries . | . . . Exploration | -11 -10 -10 ------------- Run | Yrd Mat Min Turns Passed 1949 | 65 825 1059 Spaces Moved 856 | 25 377 454 Core . | . . . Treads 700 | 25 377 298 Legs . | . . . Wheels 156 | . . 156 Hover . | . . . Flight . | . . . Fastest Speed 130 | 160 160 130 Average Speed 190 | 160 174 205 Slowest Speed 240 | 160 240 240 Overloaded Moves . | . . . Propulsion Burnouts . | . . . Robots Hopped . | . . . Cave-ins Triggered . | . . . Exploration Rate (%) 47 | 5 58 79 Regions Visited 2 Branch Regions 1 Pre-discovered Areas 1 | . . 1 Known Exits Taken 1 | . 1 . Unknown Exits Taken 1 | 1 . . Scrap Searched 1 | . . 1 Spaces Dug . | . . . Terrain Destroyed . | . . . Melee . | . . . Projectile . | . . . AOE . | . . . Terrain Rammed . | . . . Walls Destroyed . | . . . Machines Disabled . | . . . Actions | -11 -10 -10 --------- Run | Yrd Mat Min Total 1014 | 36 460 518 Wait 32 | . 17 15 Move 854 | 24 376 454 Hop . | . . . Pick Up 6 | 1 4 1 Fast Attach 2 | 1 1 . Attach 5 | . . 5 Detach 2 | . 1 1 Swap 13 | 2 7 4 Drop 8 | . 7 1 Fire 86 | 8 46 32 Melee . | . . . Ram 2 | . . 2 Kick . | . . . Crush 4 | . 1 3 Escape Stasis . | . . . Rewire . | . . . Trap . | . . . Miscellaneous . | . . . Route ------- -11/Scrapyard -10/Materials (discovered 4 exits: [*Mat x2] / *Min x2) -10/Mines (discovered 2 exits: [*Mat x2]) History --------- Turn | Location | Event 25 | -11/Scrapyard | Discovered new exit (range 3) 66 | -11/Scrapyard | Entered Materials 242 | -10/Materials | Discovered new exit (range 4) 315 | -10/Materials | Build established: Mutant 391 | -10/Materials | Discovered new exit (range 15) 626 | -10/Materials | Discovered new exit (range 16) 657 | -10/Materials | Discovered new exit (range 3) 888 | -10/Materials | Identified exit to Mines 891 | -10/Materials | Entered Mines 1002 | -10/Mines | Build established: Scavenger-Mutant 1093 | -10/Mines | Found a damaged Exp. Sensor Array with a note attached 1102 | -10/Mines | Found Prototype Device 1142 | -10/Mines | Identified Exp. Sensor Array 1398 | -10/Mines | Found the Drone Emporium 1448 | -10/Mines | Build established: Mutant 1495 | -10/Mines | Discovered new exit (range 11) 1705 | -10/Mines | Core integrity fell below 50% 1759 | -10/Mines | Lost 5 parts (1p2n1u1w) 1824 | -10/Mines | Discovered new exit (range 9) 1948 | -10/Mines | Core integrity fell below 20% 1950 | -10/Mines | Destroyed by Y-45 Defender with Heavy Assault Rifle Last Messages --------------- strings attached!" 01495_ EXIT=FOUND 01702_ Critical hit (Burn: +37). 01702_ Lgt. Treads destroyed. 01712_ Exp. Sensor Array destroyed. 01713_ Slammed into T-07 Excavator. 01713_ Destabilizing: Core damaged (-7). 01728_ Assault Rifle destroyed. 01728_ Lgt. Nuclear Core destroyed. 01744_ Searching scrap... 01744_ Found Mining Laser. 01744_ Found 24 Matter. 01824_ EXIT=FOUND 01859_ Core Extractor disabled. 01867_ G-47 Trooper destroyed. 01881_ G-34 Mercenary destroyed. 01884_ Acquired 45 matter. 01888_ Acquired 13 matter. 01933_ Slammed into K-01 Serf. 01950_ Critical hit (Burn: +37). Map ----- +----------------------------------------------------+ | # #?# #????# #?????# #????#" "#???????? | | ??# #????# #?????# #???### #######??? | | #??# #????# #?????# #??## ## ## ###? | | # #### #????# #?????# #??# X ## | | ?# #????# #?????# #??# # | | ?# #????# #?????# #??## # | | ?## ########### #?????# #???### ### ## | | ??# #??#% #?????# ######## ####?######? | | ### #??# |#######?????#% #????????? | | #??# #????#??????# #????????? | | #??# #???????????## ########## #????????? | | #??# ##???????????# #??????### ###??????? | | #??# #????????????# #????### ####???? | | #??# #???#????????# #??### #???? | | # ##??# #??????#?????# #??# #???? | | ## #???# #????????????# #?# """ #???? | | ## #?### #?####?#?#???# #?# """ ###### | | ## #??## ### ##??????# #?# """ | | #### ##### ##?????# #?# | | ???# ####### #?# #### | | ???# ###### %% #?# #??? | | ???# #????## ##### ####?## ##??? | | ???# #?????## ###?#?# #?????### ##???? | | #### #???##?## ##????## #???????## #????? | | [ #?????#?####?###?# ##???????## #????# | | " !"" #???????????##" ## @ ##???????## ##????# | | "= "" #???????#???#"" # ##???????#######?????# | | "= "" #??????????##!! Y ##??????????????????# | | =%! #??#???#?#??#!! / #??????????????????? | | "[""" #?#?????????#"" # #??????????????????? | | " """ ##??????????##"Y## ##??????????????????? | | " """ #????????????###?### ##???????????????????? | | #???????????????????###????????????????????? | | #######??????????????????????????????????????????? | | ???????#?????????????????????????????????????????? | | | | | | | | | | | | | | | | | | | | | | | | | | | | | | | +----------------------------------------------------+ Best States ------------- Heat Dissipation 25 Energy Generation 14 Energy Capacity 160 Matter Stores 300 Matter Capacity 300 Sight Range 16 Robot Scan Range 20 Terrain Scan Range 16 Terrain Scan Density 10 Evasion (%) 40 Recoil Reduction 2 Item Schematics ----------------- None Robot Schematics ------------------ None Fabricated ------------ Nothing Alien Tech Used ----------------- None Achievements -------------- None Challenges ------------ None Game ------ Seed CloakingCorruptionAutogun Manual? 0 Play Time 00:14:57 Cumulative 14.1 hours Start 2024.04.04 @ 22:54:20 End 2024.04.04 @ 23:08:57 Sessions 1 Manual Loads 0 Difficulty Rogue Special Mode None Game No. 22 Rogue 22 Adventurer 0 Explorer 0 Win Type - Total 0 Types 0/0/0/0/0/0/0/0/0 Lore% 21 Gallery% 18 Achievement% 26 Wizard Run 0 Options --------- Layout 0 ASCII 0 Keyboard 0 Movement Numpad Keybinds 0 Fullscreen 2 Font 24/Proggy Map View 76x50 Zoom Use 0% Tactical HUD 1 Map Filters NONE Filters NONE Steam 1 RUN: 73edf6d3-f488-4f50-ae6d-f36e319af5a1